Cogmind - Beta 16 @@@ ROGUE MODE // 2025.12.08 @ 06:15:09 Player: H3-MLN Result: Destroyed self with Rocket Launcher Performance ------------- Evolutions (0) 0 Regions Visited (4) 800 Robots Destroyed (18) 90 Value Destroyed (317) 317 Prototype IDs (39) 780 Alien Tech Used (0) 0 Bonus (300) 300 TOTAL SCORE: 2287 Bonus ------- Aligned with FarCom 300 Cogmind --------- Core Integrity 0/250 Matter 230/300 Energy 160/160 System Corruption 0% Temperature Cool (0) Movement Treading (330) Ox2 Location -9/Mines Parts ------- > --- POWER (1) -------- Light Nuclear Core > --- PROPULSION (2) --- Armored Treads Wheel > --- UTILITY (2) ------ High-capacity Storage Unit Seismic Detector > --- WEAPON (2) ------- Rocket Launcher > --- INVENTORY (20) --- Light Treads Light Treads Combat Airjet Large Storage Unit High-capacity Matter Pod (200) High-capacity Matter Pod (200) High-capacity Matter Pod (200) High-capacity Matter Pod (109) Modified TNC Hardened Medium Armor Plating Hacking Suite XL Autogun Array Datajack Mining Laser Longsword +1 Peak State ------------ > --- POWER ------------ Light Nuclear Core > --- PROPULSION ------- Armored Treads Wheel > --- UTILITY ---------- High-capacity Storage Unit Seismic Detector > --- WEAPON ----------- EM Pulse Gun Rocket Launcher > --- INVENTORY -------- Light Treads Light Treads Combat Airjet Large Storage Unit High-capacity Matter Pod High-capacity Matter Pod High-capacity Matter Pod High-capacity Matter Pod Modified TNC Hardened Medium Armor Plating Hacking Suite XL Autogun Array Datajack Mining Laser Longsword +1 [Rating: 19] Favorites ----------- Power Light Ion Engine Engine Light Ion Engine Power Core Light Nuclear Core Propulsion Light Treads Treads Light Treads Wheel Compact Wheel Utility Seismic Detector Device Seismic Detector Storage Large Storage Unit Protection Hardened Medium Armor Plating Weapon EM Pulse Gun Energy Gun EM Pulse Gun Ballistic Gun Assault Rifle Launcher Grenade Launcher Special Melee Weapon Datajack Build | -11 -10 -10 -10 -9 ------- Run | Yrd Mat Min Exi Min Slots Evolved . | . . . . . Power . | . . . . . Propulsion . | . . . . . Utility . | . . . . . Weapon . | . . . . . Parts Attached 24 | 7 4 8 5 . Power 4 | 1 1 1 1 . Engine 3 | 1 1 1 . . Core 1 | . . . 1 . Reactor . | . . . . . Propulsion 6 | 2 . 3 1 . Treads 4 | 1 . 3 . . Leg . | . . . . . Wheel 2 | 1 . . 1 . Hover . | . . . . . Flight . | . . . . . Utility 6 | 2 2 1 1 . Device 1 | 1 . . . . Storage 4 | 1 2 . 1 . Processor . | . . . . . Hackware . | . . . . . Protection 1 | . . 1 . . Artifact . | . . . . . Weapon 8 | 2 1 3 2 . Energy Gun 2 | 1 1 . . . Energy Cannon . | . . . . . Ballistic Gun 1 | 1 . . . . Ballistic Cannon . | . . . . . Launcher 4 | . . 3 1 . Special Weapon . | . . . . . Impact Weapon . | . . . . . Slashing Weapon . | . . . . . Piercing Weapon . | . . . . . Special Melee Weapon 1 | . . . 1 . Unidentified Prototypes . | . . . . . Parts Lost 9 | . . 8 . 1 Power 2 | . . 2 . . Propulsion 2 | . . 2 . . Utility . | . . . . . Weapon 5 | . . 4 . 1 Highest Loss Streak 5 | . . 5 . 1 To Critical Strikes . | . . . . . Average Backups 10 | 3 9 9 13 15 Power . | . 1 . . . Propulsion 3 | 1 3 2 3 3 Utility 3 | . . 4 6 8 Weapon 2 | . 3 1 3 3 Tool/Special . | . . . . . Unused Backups 21 | . 6 . 4 11 Power . | . . . . . Propulsion 4 | . 2 . . 2 Utility 12 | . 2 . 4 6 Weapon 5 | . 2 . . 3 Tool/Special . | . . . . . Average Slot Usage (%) 99 | . 99 100 100 100 Engine 11 | . 14 14 8 . Core 2 | . . . 5 14 Treads 22 | . 14 24 26 14 Wheel 5 | . 14 3 1 14 Device 10 | . 14 7 14 14 Storage 14 | . 14 14 14 14 Protection 3 | . . 6 . . Energy Gun 18 | . 14 22 15 14 Ballistic Gun 4 | . 13 2 . . Launcher 2 | . . 2 . 14 Special Melee Weapon 2 | . . . 11 . Peak Build Rating 19 | 7 8 14 19 19 Average Rating 11 | 4 7 10 14 19 On Entrance 9 | . 7 8 12 19 Avg Prop Armor Cover (%) 12 | 13 12 11 14 14 Naked Turns . | . . . . . Heaviest Build 52 | 12 30 34 52 52 Greatest Support 40 | 20 16 40 40 10 Greatest Overweight (x) 5 | . 1 1 5 5 Average Overweight (x) . | . . . . 5 Largest Inventory Capacity 20 | 8 15 15 20 20 Average Capacity 14 | 6 10 15 15 20 Most Carried 19 | 6 11 15 19 18 Average Carried 11 | 3 9 10 15 18 Final Capacity 20 | 8 15 15 20 20 Final Carried 18 | 6 11 15 18 18 Class Distribution -------------------- 100% | Mutant Dominant Class ---------------- Mutant | -10/Materials Mutant | -10/Mines Mutant | -10/Exiles Mutant | -9/Mines Resources | -11 -10 -10 -10 -9 ----------- Run | Yrd Mat Min Exi Min Matter Collected 1651 | 279 286 413 673 . Remotely . | . . . . . Salvage Created 562 | 102 220 217 . 23 Parts 43 | 8 15 13 . 7 Haulers Intercepted 1 | . 1 . . . Recyclers Shooed 1 | . 1 . . . Parts Field Recycled . | . . . . . Retrieved Matter . | . . . . . Parts Self-Destructed . | . . . . . Prevented . | . . . . . Parts Restored . | . . . . . Kills | -11 -10 -10 -10 -9 ------- Run | Yrd Mat Min Exi Min Combat Hostiles Destroyed 27 | . 1 23 . 3 Guns 2 | . 1 1 . . AOE 25 | . . 22 . 3 Classes Destroyed 9 | 2 4 3 . . Worker 1 | . 1 . . . Tunneler 2 | 1 . . . 1 Hauler 1 | . 1 . . . Recycler 2 | 1 1 . . . Watcher 1 | . 1 . . . Swarmer 6 | . . 3 . 3 Grunt 4 | . 1 3 . . Demolisher 1 | . . 1 . . Assembled 16 | . . 16 . . Best Kill Streak 17 | 2 2 17 . 4 Combat Bots Only 17 | . 1 17 . 3 Max Kills in Single Turn 4 | 1 1 4 . 3 Gunslinging . | . . . . . Exploded 4 | . . 4 . 3 Melee . | . . . . . Uniques/NPCs Destroyed . | . . . . . Combat | -11 -10 -10 -10 -9 -------- Run | Yrd Mat Min Exi Min Hostile Shots Fired 83 | . 9 64 . 10 Missed 24 | . 2 16 . 6 Hits 59 | . 7 48 . 4 Melee 2 | . . 2 . . Projectile 57 | . 7 46 . 4 AOE 7 | . . 7 . . Critical Strikes 1 | . . 1 . . Damage Taken 1257 | . 81 1101 . 75 Core 253 | . . 233 . 20 Absorbed by Shields . | . . . . . Core Remaining (%) 100 | 100 . . . . Volleys Fired 68 | 3 24 36 1 4 Largest 2 | 2 2 2 1 1 Hottest 80 | 60 60 80 33 33 Shots Fired 97 | 6 47 39 1 4 Gun 69 | 6 47 16 . . Cannon . | . . . . . Launcher 28 | . . 23 1 4 Special . | . . . . . Kinetic 27 | 3 24 . . . Thermal 25 | 3 17 5 . . Explosive 28 | . . 23 1 4 Electromagnetic 17 | . 6 11 . . Robot Hit Streak 9 | 4 8 9 . . Robot Miss Streak 2 | . 2 2 . 1 Penetration Max . | . . . . . Secondary Targets . | . . . . . Shots Hit Robots 58 | 4 29 21 4 . Core Hits 64 | 2 8 50 . 4 Critical Kills . | . . . . . Critical Parts Destroyed . | . . . . . Critical Strikes . | . . . . . Melee Attacks 4 | . . . 4 . Impact . | . . . . . Slashing . | . . . . . Piercing . | . . . . . Sneak Attacks 4 | . . . 4 . Combat Hostiles . | . . . . . Follow-up Attacks . | . . . . . Damage Inflicted 2111 | 54 350 1443 . 264 Guns 521 | 54 350 117 . . Cannons . | . . . . . Explosions 1589 | . . 1325 . 264 Melee . | . . . . . Ramming 1 | . . 1 . . Kinetic 245 | 42 203 . . . Thermal 252 | 12 109 131 . . Explosive 1502 | . . 1238 . 264 Electromagnetic 111 | . 38 73 . . Impact . | . . . . . Slashing . | . . . . . Piercing . | . . . . . Highest Corruption . | . . . . . Average Corruption . | . . . . . Corruption Purged . | . . . . . Corruption Blocked . | . . . . . Overload Shots . | . . . . . Overflow Damage 35 | . . 22 . 13 Projectiles . | . . . . . Explosions 35 | . . 22 . 13 Melee . | . . . . . Knockbacks . | . . . . . Impact . | . . . . . Kinetic . | . . . . . Secondary . | . . . . . Self-Inflicted Damage 279 | . . 228 . 51 Shots 12 | . . 10 . 2 Rammed 1 | . . 1 . . Targets Rammed 1 | . . 1 . . Kicked . | . . . . . Crushed . | . . . . . Highest Temperature 99 | . 30 99 . . Average Temperature 30 | . 19 33 . . Received Heat Transfer 354 | . 45 309 . . Siege Activations . | . . . . . Martial Activations . | . . . . . Shielding Activations . | . . . . . Robots Disrupted . | . . . . . Combat Hostiles . | . . . . . Robots Corrupted . | . . . . . Combat Hostiles . | . . . . . Parts Fried . | . . . . . Impact Corruptions . | . . . . . Robots Melted . | . . . . . Combat Hostiles . | . . . . . Parts Melted . | . . . . . Heat Transferred 425 | 25 250 150 . . Parts Sabotaged . | . . . . . Parts Stolen . | . . . . . Parts Stripped . | . . . . . Power Chain Reactions 2 | . . 2 . . Alert | -11 -10 -10 -10 -9 ------- Run | Yrd Mat Min Exi Min Maximum Alert Level . | . . . . . Low Security (%) 100 | 100 100 100 . 100 Level 1 . | . . . . . Level 2 . | . . . . . Level 3 . | . . . . . Level 4 . | . . . . . Level 5 . | . . . . . High Security . | . . . . . Max Security . | . . . . . Peak Influence 102 | 10 30 102 . 80 Initial . | . . . . . Average 14 | 1 2 23 . 2 Influence Increases 477 | 10 66 318 . 83 Destroy 0b10 Robot/C 220 | . 20 140 . 60 Destroy 0b10 Robot/NC 35 | 10 20 . . 5 Destroy Leader 54 | . 14 30 . 10 Successful Hack 12 | . 12 . . . Disable Machine 15 | . . 15 . . Destroy Structure 96 | . . 88 . 8 Lose Combat Pursuer 45 | . . 45 . . Influence Decreases 404 | 10 66 318 . 10 Time Decay 314 | 10 66 238 . . Lost Part 90 | . . 80 . 10 Squads Dispatched 3 | . 2 1 . . Investigation 2 | . 1 1 . . Extermination . | . . . . . Reinforcement 1 | . 1 . . . Assault . | . . . . . Garrison . | . . . . . Intercept . | . . . . . Searches Triggered . | . . . . . Construction Impeded . | . . . . . Haulers Reinforced . | . . . . . Active Scanning Responses . | . . . . . Cargo Convoy Interrupts . | . . . . . Stealth | -11 -10 -10 -10 -9 --------- Run | Yrd Mat Min Exi Min Distress Signals 1 | . . 1 . . Communications Jammed . | . . . . . Distress Signals . | . . . . . Times Spotted 38 | . 8 28 . 2 Peak Tracking Total 10 | . 2 10 9 4 Tactical Retreats 3 | . . 3 . . Traps | -11 -10 -10 -10 -9 ------- Run | Yrd Mat Min Exi Min Traps Triggered 1 | . 1 . . . Indirectly . | . . . . . Trap Hack Attempts . | . . . . . Triggered . | . . . . . Disarmed . | . . . . . Reprogrammed . | . . . . . Reused . | . . . . . Traps Extracted . | . . . . . Installed . | . . . . . Triggered . | . . . . . Machines | -11 -10 -10 -10 -9 ---------- Run | Yrd Mat Min Exi Min Machines Disabled 2 | . . 1 1 . Max in Single Turn 1 | . . 1 1 . Machines Repaired . | . . . . . Machines Dismantled . | . . . . . Machines Sabotaged . | . . . . . Overloaded Fab Kills . | . . . . . Hacking | -11 -10 -10 -10 -9 --------- Run | Yrd Mat Min Exi Min Machines Accessed 10 | . 7 1 2 . Terminals 5 | . 5 . . . Fabricators . | . . . . . Repair Stations 1 | . 1 . . . Recycling Units 1 | . 1 . . . Scanalyzers . | . . . . . Garrison Access . | . . . . . Total Hacks 22 | . 16 1 5 . Successful 11 | . 5 1 5 . Failed 11 | . 11 . . . Catastrophic 3 | . 3 . . . Database Lockouts . | . . . . . Manual 10 | . 9 . 1 . Terminals 13 | . 13 . . . Fabricators . | . . . . . Repair Stations 1 | . 1 . . . Recycling Units 2 | . 2 . . . Scanalyzers . | . . . . . Garrison Access . | . . . . . Terminal Hacks 10 | . 4 1 5 . Record 4 | . . . 4 . Part Schematic 1 | . 1 . . . Robot Schematic 1 | . 1 . . . Prototype ID Bank 1 | . 1 . . . Open Door 1 | . . 1 . . Locate Traps 1 | . 1 . . . Proto ID Catalog 1 | . . . 1 . Fabricator Hacks . | . . . . . Repair Station Hacks . | . . . . . Recycling Unit Hacks . | . . . . . Scanalyzer . | . . . . . Garrison Access Hacks . | . . . . . Unauthorized Hacks 1 | . 1 . . . Terminals 1 | . 1 . . . Track 1 | . 1 . . . Fabricators . | . . . . . Repair Stations . | . . . . . Recycling Units . | . . . . . Scanalyzers . | . . . . . Garrison Access . | . . . . . Data Cores Recovered . | . . . . . Used . | . . . . . Hacking Detections 7 | . 7 . . . Full Trace Events 1 | . 1 . . . Feedback Events . | . . . . . Feedback Blocked . | . . . . . Robot Schematics Acquired 1 | . 1 . . . Robots Built . | . . . . . Authchips . | . . . . . Time . | . . . . . Total Robot Build Rating . | . . . . . Part Schematics Acquired 1 | . 1 . . . Parts Built . | . . . . . Authchips . | . . . . . Time . | . . . . . Total Part Build Rating . | . . . . . Part Studies Acquired . | . . . . . Parts Repaired . | . . . . . Time . | . . . . . Parts Recycled . | . . . . . Recycled Matter . | . . . . . Retrieved Matter . | . . . . . Retrieved Components . | . . . . . Parts Scanalyzed . | . . . . . Part Schematics Acquired . | . . . . . Parts Damaged . | . . . . . Bothacking | -11 -10 -10 -10 -9 ------------ Run | Yrd Mat Min Exi Min Used RIF Installer . | . . . . . Robots Hacked 4 | . . . 4 . Non-combat 3 | . . . 3 . Combat 1 | . . . 1 . Robot Hacks Applied 4 | . . . 4 . parse_system 4 | . . . 4 . Relay Couplers Released . | . . . . . Fabnet Peak Effective % . | . . . . . Robots Rewired . | . . . . . Allies Hacked . | . . . . . Hacks Repelled . | . . . . . Allies | -11 -10 -10 -10 -9 -------- Run | Yrd Mat Min Exi Min Total Allies 1 | . . 1 . . Largest Group 1 | . . 1 . . Highest-Rated Group 31 | . . 31 . . Highest-Rated Ally 31 | . . 31 . . Total Orders . | . . . . . Ally Attacks . | . . . . . Total Damage . | . . . . . Kills . | . . . . . Allies Corrupted . | . . . . . Allies Melted . | . . . . . Intel | -11 -10 -10 -10 -9 ------- Run | Yrd Mat Min Exi Min Active Infowar (turns) 1860 | 20 572 544 586 138 Seismic 1860 | 20 572 544 586 138 Robot Analysis Total . | . . . . . Derelict Logs Recovered 3 | . . 3 . . Drone Launches . | . . . . . Drone Recoveries . | . . . . . Exploration | -11 -10 -10 -10 -9 ------------- Run | Yrd Mat Min Exi Min Turns Passed 2468 | 99 572 1073 586 138 Spaces Moved 1462 | 70 369 604 334 85 Core 5 | 5 . . . . Treads 786 | 4 . 475 307 . Legs . | . . . . . Wheels 671 | 61 369 129 27 85 Hover . | . . . . . Flight . | . . . . . Fastest Speed 50 | 50 100 115 140 155 Average Speed 142 | 99 107 153 167 155 Slowest Speed 245 | 160 115 165 245 155 Overloaded Moves . | . . . . . Propulsion Burnouts . | . . . . . Robots Hopped . | . . . . . Potential Cave-ins 1 | . . 1 . . Cave-ins Triggered . | . . . . . Exploration Rate (%) 46 | 4 52 82 66 28 Regions Visited 4 Branch Regions 3 Pre-discovered Areas 3 | . . 2 1 . Known Exits Taken . | . . . . . Unknown Exits Taken 4 | 1 1 1 1 . Scrap Searched 1 | . . 1 . . Spaces Dug 8 | . . 8 . . Terrain Destroyed 157 | . . 137 10 10 Melee . | . . . . . Projectile . | . . . . . AOE 157 | . . 137 10 10 Terrain Rammed . | . . . . . Walls Destroyed . | . . . . . Machines Disabled . | . . . . . Actions | -11 -10 -10 -10 -9 --------- Run | Yrd Mat Min Exi Min Total 1751 | 90 501 712 359 89 Wait 133 | 2 82 49 . . Move 1458 | 69 368 603 333 85 Hop . | . . . . . Pick Up 35 | 8 10 9 8 . Fast Attach 11 | 6 3 2 . . Attach 9 | 1 . 8 . . Detach 1 | . . 1 . . Swap 12 | . 4 3 5 . Drop 19 | 1 10 . 8 . Fire 68 | 3 24 36 1 4 Melee 4 | . . . 4 . Ram 1 | . . 1 . . Kick . | . . . . . Crush . | . . . . . Escape Stasis . | . . . . . Rewire . | . . . . . Trap . | . . . . . Miscellaneous . | . . . . . Route ------- -11/Scrapyard -10/Materials (discovered 2 exits: *Min / [*Sub]) -10/Mines (discovered 3 exits: [*Mat x2] / *Exi) -10/Exiles (discovered 2 exits: [*Min x2]) -9/Mines History --------- Turn | Location | Event 10 | -11/Scrapyard | Discovered new exit (range 16) 100 | -11/Scrapyard | Entered Materials 208 | -10/Materials | Discovered new exit (range 9) 301 | -10/Materials | Discovered new exit (range 13) 308 | -10/Materials | Build established: Mutant 672 | -10/Materials | Entered Mines 770 | -10/Mines | Assembled infested the area 857 | -10/Mines | Core integrity fell below 50% 862 | -10/Mines | Lost 3 parts (1n2w) 864 | -10/Mines | Destroyed 17 combat bots 891 | -10/Mines | Core integrity fell below 20% 943 | -10/Mines | Lost 5 parts (2p1n2w) 996 | -10/Mines | Received a Mining Laser from a helpful Derelict 1106 | -10/Mines | Found a Scrap Suit stashed away for nefarious purposes 1110 | -10/Mines | Found Scrap Suit 1153 | -10/Mines | Met a Derelict shopkeep closing up shop 1274 | -10/Mines | Received a Rocket Launcher from a helpful Derelict 1560 | -10/Mines | Discovered new exit (range 5) 1562 | -10/Mines | Learned 2 Materials zone layouts 1592 | -10/Mines | Learned location of Zion (-6) 1595 | -10/Mines | Learned location of Storage (-8) 1626 | -10/Mines | Discovered new exit (range 6) 1737 | -10/Mines | Deemed a non-threat by the Exiles lab entrance 1739 | -10/Mines | Discovered new exit (range 5) 1745 | -10/Mines | Entered Exiles 1770 | -10/Exiles | Discovered new exit (range 15) 1790 | -10/Exiles | Met 8R-AWN 1818 | -10/Exiles | Met EX-HEX 1882 | -10/Exiles | Met EX-DEC 2012 | -10/Exiles | Met EX-BIN 2032 | -10/Exiles | Aligned with FarCom system 2033 | -10/Exiles | Given EX-Vault access code 2071 | -10/Exiles | Opened EX-Vault 2083 | -10/Exiles | Found Longsword +1 2088 | -10/Exiles | Found Modified TNC 2096 | -10/Exiles | Found XL Autogun Array 2130 | -10/Exiles | Warned to stay clear of 0b10 Research branches 2304 | -10/Exiles | Attacked by the Exiles 2319 | -10/Exiles | Discovered new exit (range 10) 2331 | -10/Exiles | Stole three prototypes: Modified TNC, XL Autogun Array, Longsword +1 2331 | -10/Exiles | Entered Mines 2469 | -9/Mines | Destroyed self with Rocket Launcher Last Messages --------------- 02253_ Acquired Hcp. Matter Pod. 02254_ Extracted 191 matter. 02256_ Acquired Hcp. Matter Pod. 02257_ Extracted 191 matter. 02260_ Acquired Hcp. Matter Pod. 02270_ Dropped Med. Matter Pod. 02271_ Extracted 100 matter. 02278_ Acquired Lrg. Storage Unit. 02279_ Dropped Hcp. Storage Unit. 02304_ EXILES: Hostile robot within lab perimeter. Defensive protocols time, folks! 02319_ EXIT=FOUND LOCATION=UNKNOWN GOAL=ESCAPE 02457_ K-01 Serf collects debris. 02463_ T-07 Excavator destroyed. 02464_ The unstable cave ceiling collapses. 02465_ S-10 Pest destroyed. 02469_ EM Pulse Gun destroyed. 02469_ Destroyed EM Pulse Gun. Map ----- +----------------------------------------------------+ | ?????????????????????????????????????????????????? | | ?????????????????????????????????????????????????? | | ?????????????????????????????????????????????????? | | ?????????????????????????????????????????????????? | | ?????????????????????????????????????????????????? | | ?????????????????????????????????????????????????? | | ?????????????????????????????????????????????????? | | ?????????????????????????????????????????????????? | | ?????????????????????????????????????????????????? | | ?????????????????????????????????????????????????? | | ?????????????????????????????????????????????????? | | ????????????????????????????? ???????????????????? | | ????????????????????????????? #?????????????????? | | ???????????????????????????? ??????????????????? | | ???????????????????????????? ??????????????????? | | ???????????????????????????? ???????????????????? | | ??????????????????????????? ???????????????????? | | ?????####??????????????????k ##??????????????????? | | ????## ##????????????????? ??#????????????????? | | ????# ##???????????????? #? #????????????????? | | ????# #######???????### ## #????????????????? | | ?????# #??????? ##???????????????? | | ?????## #### #??????? ##??????????????? | | ??????## #??# #??????## ## #?????????? | | ??????## ##?# ######## #????????? | | ??????# #?# @ ????????? | | ##????# ### % ????????? | | ##??## ########## = ????????? | | ##??## ########## ?????????? | | ##??# ## ###### ?????????? | | #### ## #????? ??????????? | | ## ## ####### ##t #??????? ??????????? | | ?## ##????????## ##????????? ??????????? | | ??## ##??????????# #??????????????????????? | | #### ##??????????? #??????????????????????? | | ## ##???????????? #??????????????????????? | | ###????????????? #??????????????????????? | | ####??????????????? #??????????????????????? | | #####????????????? ##??????????????????????? | | ##????????????###????????????????????????? | | ####????????????????????????????????????? | | #????????????????????????????????????? | | # ### #???????????????????????????????????? | | ## ##?## ##???????????????????????????????????? | | ?#####???####????????????????????????????????????? | | ?????????????????????????????????????????????????? | | ?????????????????????????????????????????????????? | | ?????????????????????????????????????????????????? | | | | | +----------------------------------------------------+ Best States ------------- Heat Dissipation 25 Energy Generation 14 Energy Capacity 250 Matter Stores 300 Matter Capacity 300 Sight Range 16 Terrain Scan Density 10 Armor Coverage 225 Evasion (%) 40 Recoil Reduction 2 Item Schematics ----------------- Huge Storage Unit | -10/Materials | Hacked Robot Schematics ------------------ M-13 Machinist | -10/Materials | Hacked Fabricated ------------ Nothing Repaired ---------- Nothing Studied --------- None Alien Tech Used ----------------- None Achievements -------------- None Challenges ------------ None Game ------ Seed EfficiencySmallWings Manual? 0 Play Time 00:15:47 Cumulative 1135.7 hours Start 2025.12.08 @ 05:59:59 End 2025.12.08 @ 06:15:09 Sessions 1 Manual Loads 0 Difficulty Rogue Special Mode None Game No. 397 Rogue 392 Adventurer 4 Explorer 1 Win Type - Total 23 Types 13/3/1/2/0/1/0/0/2/1 Lore% 97 Gallery% 95 Achievement% 81 Wizard Run 0 Options --------- Layout 0 ASCII 0 Keyboard 0 Movement Numpad Keybinds 0 Fullscreen 2 Font 18/SmallcapsGlow Map View 76x50 Zoom Use 0% Tactical HUD 1 Map Filters NONE Filters NONE Steam 1 RUN: 95d4d8c5-e24a-403e-a59c-61bb9ab9246e